bitfinex/quotes_SOLUSD_20250217
["timestamp","ask_amount","ask_price","bid_price","bid_amount"]
[1739811204312,0.03,178.92,178.88,29.71189757]
[1739811204704,0.03,178.92,178.87,29.71189757]
[1739811205204,0.03,178.92,178.86,29.77489757]
[1739811205410,5.5897,178.9,178.86,0.063]
[1739811205818,0.03,178.92,178.87,29.71189757]
[1739811206324,5.6191,178.92,178.86,29.77489757]
[1739811206529,35.33099757,178.92,178.86,29.77489757]
[1739811208127,0.03,178.92,178.89,29.71189757]
[1739811208611,0.03,178.92,178.91,29.71189757]
[1739811209500,0.03,178.92,178.91,35.30129757]
[1739811210230,0.03,178.92,178.91,48.7131461]
[1739811211321,0.03,178.95,178.92,13.41184853]
[1739811211524,0.03,178.95,178.94,43.1237461]
[1739811211722,0.03,178.95,178.94,48.7121461]
[1739811212242,0.03,178.95,178.94,43.1237461]
[1739811214628,0.03,178.95,178.94,29.71189757]
[1739811217438,0.03,178.95,178.94,49.55013286]
[1739811218642,0.03,178.95,178.94,38.39980944]
[1739811218943,0.03,178.95,178.94,32.81140944]
[1739811219535,0.03,178.95,178.94,18.56157415]
[1739811219920,0.03,178.95,178.93,18.56157415]
[1739811220221,0.03,178.95,178.94,18.56157415]
[1739811224531,0.03,178.95,178.92,0.063]
[1739811224532,0.03,178.95,178.93,18.56157415]
[1739811225238,0.03,178.95,178.94,18.56157415]
[1739811226040,0.03,178.95,178.93,18.56157415]
[1739811226245,0.03,178.95,178.94,18.56157415]
[1739811226436,0.03,178.95,178.93,18.56157415]
[1739811228040,0.03,178.95,178.92,0.063]
[1739811228251,18.56157415,178.94,178.92,0.063]
[1739811228461,0.03,178.95,178.92,0.063]
[1739811228626,0.03,178.95,178.92,18.62457415]
[1739811228948,0.03,178.95,178.93,18.56157415]
[1739811229153,0.03,178.95,178.94,18.56157415]
[1739811231442,0.03,178.95,178.94,31.97342268]
[1739811231849,0.03,178.95,178.94,18.56157415]
[1739811232649,0.03,178.95,178.92,18.62457415]
[1739811234257,0.03,178.95,178.92,0.063]
[1739811234636,18.59157415,178.95,178.92,0.063]
[1739811234843,0.03,178.95,178.92,0.063]
[1739811235735,0.03,178.95,178.93,18.56157415]
[1739811235941,0.03,178.95,178.94,18.56157415]
[1739811237061,0.03,178.95,178.93,18.56157415]
[1739811237770,0.03,178.95,178.94,39.22099977]
[1739811239467,0.03,178.95,178.94,44.80939977]
[1739811239861,0.03,178.95,178.94,31.97342268]
[1739811240067,0.03,178.95,178.94,37.56182268]
[1739811240647,0.03,178.95,178.94,31.97342268]
[1739811241055,0.03,178.95,178.92,0.063]
[1739811241661,0.03,178.95,178.93,18.56157415]
[1739811242251,0.03,178.95,178.94,18.56157415]
[1739811243068,0.03,178.95,178.92,18.62457415]
[1739811243455,0.03,178.95,178.92,0.063]
[1739811244056,18.59157415,178.95,178.92,0.063]
[1739811244572,18.56157415,178.94,178.92,0.063]
[1739811244874,18.56157415,178.93,178.92,0.063]
[1739811245673,24.15027415,178.93,178.92,0.063]
[1739811248467,24.15027415,178.93,178.92,0.0001]
[1739811249847,58.31097429,178.93,178.92,0.0001]
[1739811250052,58.31097429,178.93,178.87,0.063]
[1739811250053,95.21184853,178.92,178.87,0.063]
[1739811250253,18.56157415,178.88,178.87,0.063]
[1739811251963,24.15187415,178.88,178.87,0.063]
[1739811256070,5.5903,178.88,178.87,0.063]
[1739811256372,18.56157415,178.89,178.87,0.063]
[1739811256579,81.8,178.91,178.87,0.063]
[1739811256580,24.15127415,178.9,178.87,0.063]
[1739811257275,5.5894,178.91,178.87,0.063]
[1739811258865,18.56157415,178.91,178.87,0.063]
[1739811259182,18.56157415,178.9,178.87,0.063]
[1739811259373,18.56157415,178.89,178.87,0.063]
[1739811260284,18.56157415,178.9,178.87,0.063]
[1739811260781,18.56157415,178.88,178.87,0.063]
[1739811261171,24.15187415,178.88,178.87,0.063]
[1739811264883,24.15187415,178.88,178.86,0.063]
[1739811265083,18.56157415,178.87,178.83,0.063]
[1739811265279,18.56157415,178.84,178.83,0.063]
[1739811265479,24.15307415,178.84,178.83,0.063]
[1739811266064,81.8,178.83,178.74,0.063]
[1739811266259,18.56157415,178.78,178.74,0.063]
[1739811266580,18.56157415,178.77,178.74,0.063]
[1739811267861,18.56157415,178.76,178.74,0.063]
[1739811268065,13.9828,178.8,178.74,0.063]
[1739811268066,18.56157415,178.75,178.74,0.063]
[1739811270113,24.15597415,178.75,178.74,0.063]
[1739811270689,5.5944,178.75,178.74,0.063]
[1739811270890,24.15597415,178.75,178.74,0.063]
[1739811272215,24.15527415,178.77,178.74,0.063]
[1739811272909,18.56157415,178.76,178.74,0.063]
[1739811273298,18.56157415,178.75,178.74,0.063]
[1739811274105,18.56157415,178.76,178.74,0.063]
[1739811274504,24.15587415,178.76,178.74,0.063]
[1739811275112,5.5938,178.77,178.74,0.063]
[1739811275611,24.15507415,178.78,178.74,0.063]
[1739811275989,5.5935,178.78,178.74,0.063]
[1739811276708,24.15377415,178.82,178.75,18.56157415]
[1739811277089,24.15377415,178.82,178.76,18.56157415]
[1739811277290,5.5922,178.82,178.77,18.56157415]
[1739811277911,5.5922,178.82,178.74,6.2429]
[1739811277912,5.5922,178.82,178.76,18.56157415]
[1739811278103,5.5922,178.82,178.76,20.11297415]
[1739811279404,24.15347415,178.83,178.77,18.56157415]
[1739811280213,5.5919,178.83,178.77,18.56157415]
[1739811280392,5.6219,178.83,178.78,18.56157415]
[1739811280998,18.56157415,178.82,178.76,20.11297415]
[1739811281915,38.16317415,178.83,178.76,20.11297415]
[1739811282216,24.18347415,178.83,178.76,20.11297415]
[1739811283522,18.56157415,178.82,178.76,1.5514]
[1739811283818,18.56157415,178.8,178.76,1.5514]
[1739811284321,18.56157415,178.78,178.74,0.063]
[1739811284495,18.56157415,178.77,178.74,0.063]
[1739811284996,5.594,178.76,178.74,0.063]
[1739811285427,18.56157415,178.75,178.74,0.063]
[1739811287421,24.15597415,178.75,178.74,0.063]
[1739811289327,32.54247415,178.82,178.74,18.62457415]
[1739811289501,5.5925,178.81,178.76,18.56157415]
[1739811290410,32.54247415,178.82,178.77,18.56157415]
[1739811290411,5.5922,178.82,178.77,18.56157415]
[1739811290606,5.5922,178.82,178.78,18.56157415]
[1739811290926,5.5922,178.82,178.76,20.09537415]
[1739811291342,24.15377415,178.82,178.76,20.09537415]
[1739811291835,18.56157415,178.79,178.74,6.7133]
[1739811292042,18.56157415,178.75,178.74,0.063]
[1739811292415,18.56157415,178.75,178.69,0.063]
[1739811292742,18.56157415,178.7,178.69,0.063]
[1739811294665,35.40942313,178.7,178.69,0.063]
[1739811295256,35.40942313,178.7,178.68,0.063]
[1739811295476,29.81352313,178.69,178.68,0.063]
[1739811296384,29.81352313,178.69,178.66,0.03]
[1739811296535,35.41042313,178.67,178.66,0.03]
[1739811297566,111.61352313,178.66,178.65,0.063]
[1739811297740,111.61352313,178.66,178.57,29.81352313]
[1739811298074,111.61352313,178.66,178.6,29.81352313]
[1739811298569,35.41102313,178.65,178.59,29.81352313]
[1739811299348,35.41102313,178.65,178.56,5.6301]
[1739811299349,29.81352313,178.66,178.6,29.81352313]
[1739811300083,29.81352313,178.65,178.59,29.81352313]
[1739811300370,29.81352313,178.65,178.56,5.6301]
[1739811300371,29.81352313,178.65,178.58,29.81352313]
[1739811300573,35.41132313,178.64,178.58,29.81352313]
[1739811301577,29.81352313,178.62,178.56,0.03]
[1739811301744,29.81352313,178.61,178.56,0.03]
[1739811301939,81.8,178.63,178.57,29.81352313]
[1739811301940,111.61352313,178.63,178.57,29.81352313]
[1739811302146,81.8,178.63,178.58,29.81352313]
[1739811302544,29.81352313,178.61,178.56,0.03]
[1739811302852,29.81352313,178.6,178.56,0.03]
[1739811303057,35.41192313,178.62,178.56,29.84352313]
[1739811303245,5.5984,178.62,178.56,29.84352313]
[1739811303449,87.3981,178.63,178.58,29.81352313]
[1739811303647,81.8,178.63,178.6,29.81352313]
[1739811304144,81.8,178.66,178.61,29.81352313]
[1739811304476,81.8,178.66,178.62,29.81352313]
[1739811304648,81.8,178.66,178.64,29.81352313]
[1739811305045,5.5962,178.69,178.65,29.81352313]
[1739811305971,5.5962,178.69,178.64,29.81352313]
[1739811306256,5.5962,178.69,178.63,29.81352313]
[1739811306861,5.5962,178.69,178.64,29.81352313]
[1739811307174,87.396,178.7,178.66,29.81352313]
[1739811307369,81.8,178.7,178.66,29.81352313]
[1739811307556,87.396,178.7,178.66,29.81352313]
[1739811307748,87.396,178.7,178.65,29.81352313]
[1739811308067,87.396,178.7,178.66,29.81352313]
[1739811308068,81.8,178.7,178.66,29.81352313]
[1739811308255,81.8,178.7,178.69,29.81352313]
[1739811308567,5.5959,178.71,178.67,29.81352313]
[1739811309173,29.81352313,178.74,178.67,29.81352313]
[1739811309355,35.40822313,178.74,178.68,29.81352313]
[1739811309751,35.40822313,178.74,178.67,29.81352313]
[1739811310165,35.40822313,178.74,178.68,29.81352313]
[1739811310662,35.40822313,178.74,178.67,29.81352313]
[1739811310663,29.81352313,178.73,178.67,29.81352313]
[1739811311672,49.39492313,178.74,178.67,29.81352313]
[1739811312051,5.5947,178.74,178.68,29.81352313]
[1739811312581,5.5947,178.74,178.69,29.81352313]
[1739811314593,5.5947,178.74,178.68,18.62336597]
[1739811314797,24.21806597,178.74,178.68,18.62336597]
[1739811314957,18.62336597,178.73,178.66,38.62336597]
[1739811315287,18.62336597,178.7,178.65,1.6584]
[1739811315460,18.62336597,178.7,178.63,24.92576597]
[1739811315880,18.62336597,178.67,178.61,20.18546597]
[1739811316073,18.62336597,178.68,178.62,18.62336597]
[1739811316255,5.5965,178.68,178.63,18.62336597]
[1739811316451,24.21986597,178.68,178.62,18.62336597]
[1739811316762,24.21986597,178.68,178.64,29.81517912]
[1739811316763,5.5965,178.68,178.64,29.81517912]
[1739811317079,35.41167912,178.68,178.61,31.37727912]
[1739811317259,29.81517912,178.67,178.61,31.37727912]
[1739811317462,49.40307912,178.68,178.62,29.81517912]
[1739811318054,35.41167912,178.68,178.62,29.81517912]
[1739811318683,35.41167912,178.68,178.61,31.37727912]
[1739811319171,35.41167912,178.68,178.62,29.81517912]
[1739811319561,35.41167912,178.68,178.61,31.37727912]
[1739811319782,49.40307912,178.68,178.61,31.37727912]
[1739811320585,29.81517912,178.65,178.57,6.0555]
[1739811320887,29.81517912,178.63,178.57,29.81517912]
[1739811321184,111.61517912,178.62,178.56,31.39727912]
[1739811321573,29.81517912,178.61,178.56,1.5821]
[1739811321966,111.61517912,178.62,178.56,1.5821]
[1739811322173,29.81517912,178.61,178.56,1.5821]
[1739811322367,29.81517912,178.59,178.56,0.03]
[1739811322573,29.81517912,178.57,178.56,0.03]
[1739811322787,35.41487912,178.58,178.56,0.03]
[1739811322964,5.5997,178.58,178.56,0.03]
[1739811324488,49.41257912,178.6,178.56,0.03]
[1739811325186,5.5991,178.6,178.56,0.03]
[1739811325387,87.3988,178.61,178.56,29.84517912]
[1739811325588,81.8,178.61,178.58,29.81517912]
[1739811326071,5.5978,178.64,178.6,29.81517912]
[1739811326281,5.5972,178.66,178.62,29.81517912]
[1739811326465,5.5972,178.66,178.61,29.81517912]
[1739811326666,5.5972,178.66,178.6,29.81517912]
[1739811326968,29.81517912,178.65,178.56,5.6302]
[1739811327181,29.81517912,178.65,178.59,29.81517912]
[1739811327568,29.81517912,178.65,178.58,49.81517912]
[1739811328097,29.81517912,178.65,178.59,29.81517912]
[1739811328475,29.81517912,178.65,178.58,49.81517912]
[1739811328790,5.5978,178.64,178.58,49.81517912]
[1739811328966,35.41237912,178.66,178.6,29.81517912]
[1739811329288,81.8,178.65,178.58,20.0]
[1739811329490,4.66,178.64,178.59,29.81517912]
[1739811329689,111.61517912,178.65,178.58,49.81517912]
[1739811329895,81.8,178.65,178.59,29.81517912]
[1739811330189,81.8,178.65,178.6,29.81517912]
[1739811330785,87.3975,178.65,178.6,29.81517912]
[1739811331303,87.3975,178.65,178.58,20.0]
[1739811331602,81.8,178.64,178.6,29.81517912]
[1739811332603,81.8,178.64,178.58,49.81517912]
[1739811332800,111.61517912,178.64,178.58,20.0]
[1739811333121,5.5981,178.63,178.58,20.0]
[1739811333464,5.5981,178.63,178.58,49.81517912]
[1739811334019,81.8,178.64,178.61,29.81517912]
[1739811334397,81.8,178.64,178.58,25.5996]
[1739811334398,81.8,178.64,178.6,29.81517912]
[1739811334605,81.8,178.64,178.61,29.81517912]
[1739811334911,87.3978,178.64,178.6,29.81517912]
[1739811335300,87.3978,178.64,178.58,25.5996]
[1739811335301,81.8,178.64,178.61,29.81517912]
[1739811335596,81.8,178.64,178.63,29.81517912]
[1739811335772,81.8,178.64,178.62,29.81517912]
[1739811335976,81.8,178.64,178.61,29.81517912]
[1739811336474,81.8,178.64,178.62,29.81517912]
[1739811336893,81.8,178.64,178.61,29.81517912]
[1739811337997,81.8,178.64,178.62,29.81517912]
[1739811338183,81.8,178.64,178.63,29.81517912]
[1739811338382,5.5969,178.67,178.62,29.81517912]
[1739811338601,5.5969,178.67,178.62,18.63697423]
[1739811339178,87.3969,178.67,178.62,18.63697423]
[1739811339694,18.63697423,178.65,178.6,1.568]
[1739811339884,18.63697423,178.65,178.58,18.63697423]
[1739811340079,5.5975,178.65,178.6,18.63697423]
[1739811341103,5.6605,178.65,178.6,18.63697423]
[1739811341271,5.6605,178.65,178.61,18.63697423]
[1739811341475,0.063,178.65,178.62,18.63697423]
[1739811342495,0.063,178.65,178.58,0.86969499]
[1739811342496,0.063,178.65,178.61,18.63697423]
[1739811342694,0.063,178.65,178.6,18.63697423]
[1739811344703,5.6605,178.65,178.6,18.63697423]
[1739811345131,81.8,178.64,178.59,18.63697423]
[1739811346811,81.8,178.64,178.58,18.66697423]
[1739811347016,5.5981,178.63,178.58,18.66697423]
[1739811347680,5.5981,178.63,178.59,20.0]
[1739811349314,5.5981,178.63,178.58,38.66697423]
[1739811350586,5.5981,178.63,178.58,18.66697423]
[1739811350913,5.5981,178.63,178.58,38.66697423]
[1739811351217,81.8,178.62,178.58,38.66697423]
[1739811351426,81.8,178.62,178.58,44.26657423]
[1739811352215,81.8,178.62,178.58,38.66697423]
[1739811352622,81.8,178.62,178.58,44.26667423]
[1739811352822,81.8,178.62,178.59,18.63697423]
[1739811356408,81.8,178.62,178.59,24.23637423]
[1739811356610,81.8,178.62,178.61,18.63697423]
[1739811357135,81.8,178.62,178.6,18.63697423]
[1739811357352,0.063,178.65,178.61,18.63697423]
[1739811357528,0.063,178.65,178.64,18.63697423]
[1739811358314,0.063,178.65,178.63,18.63697423]
[1739811358531,0.063,178.65,178.62,18.63697423]
[1739811358841,0.063,178.65,178.62,11.9266085]
[1739811359538,0.063,178.65,178.63,11.9266085]
[1739811360017,11.9896085,178.65,178.58,20.03]
[1739811360217,11.9896085,178.65,178.59,11.9266085]
[1739811360218,0.063,178.65,178.59,11.9266085]
[1739811360427,0.063,178.65,178.61,11.9266085]
[1739811360735,0.063,178.65,178.6,18.63783345]
[1739811360909,18.63783345,178.64,178.58,38.66783345]
[1739811361314,18.70083345,178.65,178.58,38.66783345]
[1739811361832,18.63783345,178.64,178.58,0.03]
[1739811362033,24.23593345,178.63,178.58,0.03]
[1739811362234,5.5981,178.63,178.58,0.03]
[1739811362444,5.5981,178.63,178.58,18.66783345]
[1739811363537,5.5981,178.63,178.58,0.03]
[1739811363711,24.23593345,178.63,178.58,0.03]
[1739811364924,18.63783345,178.62,178.58,0.03]
[1739811365138,100.43783345,178.61,178.58,0.03]
[1739811365437,18.63783345,178.59,178.58,0.03]
[1739811366532,24.23723345,178.59,178.58,0.03]
[1739811368322,5.5994,178.59,178.58,0.03]
[1739811368629,5.5987,178.61,178.58,0.03]
[1739811369618,32.63323345,178.63,178.58,0.03]
[1739811369619,24.23623345,178.62,178.58,0.03]
[1739811369830,18.63783345,178.61,178.58,0.03]
[1739811370152,18.63783345,178.59,178.58,0.03]
[1739811371836,24.23723345,178.59,178.58,0.03]
[1739811372938,5.5994,178.59,178.58,0.03]
[1739811373137,5.5987,178.61,178.58,0.03]
[1739811373515,18.63783345,178.6,178.58,0.03]
[1739811373941,18.63783345,178.61,178.58,0.03]
[1739811374133,24.23623345,178.62,178.58,0.03]
[1739811375118,5.5984,178.62,178.58,0.03]
[1739811375544,24.23623345,178.62,178.58,0.03]
[1739811375718,18.63783345,178.61,178.58,0.03]
[1739811376240,18.63783345,178.59,178.58,0.03]
[1739811377446,81.8,178.6,178.58,0.03]
[1739811377447,100.43783345,178.6,178.58,0.03]
[1739811378330,5.5994,178.59,178.58,0.03]
[1739811378830,87.3991,178.6,178.58,0.03]
[1739811379644,106.03693345,178.6,178.58,0.03]
[1739811379828,100.43783345,178.59,178.58,0.03]
[1739811380444,87.3994,178.59,178.58,0.03]
[1739811381145,106.03723345,178.59,178.58,0.03]
[1739811382345,87.3994,178.59,178.58,0.03]
[1739811382530,106.03723345,178.59,178.58,0.03]
[1739811383640,24.23723345,178.59,178.58,0.03]
[1739811387545,5.5994,178.59,178.58,0.03]
[1739811388651,18.63783345,178.59,178.58,0.03]
[1739811388947,18.63783345,178.6,178.58,0.03]
[1739811389944,18.63783345,178.61,178.58,0.03]
[1739811390153,18.63783345,178.62,178.58,0.03]
[1739811390527,18.63783345,178.61,178.58,0.03]
[1739811391351,5.5991,178.6,178.58,0.03]
[1739811392048,18.63783345,178.59,178.58,0.03]
[1739811392661,11.93953155,178.59,178.58,0.03]
[1739811393748,17.53893155,178.59,178.58,0.03]
[1739811394056,5.5994,178.59,178.58,0.03]
[1739811395328,5.5984,178.62,178.58,11.96953155]
[1739811395549,11.93953155,178.63,178.58,0.03]
[1739811395741,11.93953155,178.61,178.58,0.03]
[1739811396252,11.93953155,178.62,178.58,0.03]
[1739811398056,17.53823155,178.61,178.58,0.03]
[1739811398946,5.5987,178.61,178.58,0.03]
[1739811400455,5.5984,178.62,178.58,0.03]
[1739811401177,17.53733155,178.64,178.58,0.03]
[1739811401460,81.8,178.63,178.59,11.93953155]
[1739811401663,81.8,178.63,178.6,13.48873155]
[1739811401834,81.8,178.63,178.6,1.5492]
[1739811402453,81.8,178.63,178.6,13.48873155]
[1739811402637,0.063,178.65,178.61,11.93953155]
[1739811402839,5.6605,178.65,178.61,11.93953155]
[1739811403350,0.063,178.65,178.61,11.93953155]
[1739811403554,5.6605,178.65,178.61,11.93953155]
[1739811403744,5.6605,178.65,178.6,13.48873155]
[1739811407053,5.6605,178.65,178.61,11.93953155]
[1739811408143,5.6605,178.65,178.6,1.5492]
[1739811408470,5.6605,178.65,178.58,0.03]
[1739811408471,93.73953155,178.64,178.58,0.03]
[1739811408663,11.93953155,178.62,178.58,0.03]
[1739811408835,25.93563155,178.62,178.58,0.03]
[1739811409969,13.9961,178.62,178.58,0.03]
[1739811410182,5.5981,178.63,178.6,11.93953155]
[1739811410339,5.5981,178.63,178.61,11.93953155]
[1739811410544,5.5981,178.63,178.6,11.93953155]
[1739811410743,5.5981,178.63,178.59,11.93953155]
[1739811414173,5.5981,178.63,178.58,11.96953155]
[1739811414757,5.5981,178.63,178.59,11.93953155]
[1739811414962,81.8,178.64,178.62,11.93953155]
[1739811415189,81.8,178.64,178.63,11.93953155]
[1739811415660,87.3978,178.64,178.62,11.93953155]
[1739811415861,87.3978,178.64,178.61,11.93953155]
[1739811416676,87.3978,178.64,178.59,11.93953155]
[1739811416975,11.93953155,178.61,178.58,0.03]
[1739811417179,93.73953155,178.6,178.58,0.03]
[1739811417682,5.5994,178.59,178.58,0.03]
[1739811418468,17.53893155,178.59,178.58,0.03]
[1739811418675,24.25757033,178.59,178.58,0.03]
[1739811419779,24.25757033,178.59,178.56,0.03]
[1739811419979,18.65817033,178.57,178.56,0.03]
[1739811420778,24.25817033,178.57,178.56,0.03]
[1739811421782,5.6,178.57,178.56,0.03]
[1739811422882,18.65817033,178.61,178.56,0.03]
[1739811423382,19.5924,178.64,178.56,0.03]
[1739811423594,5.5978,178.64,178.62,18.65817033]
[1739811424077,5.5978,178.64,178.61,18.65817033]
[1739811424281,24.25597033,178.64,178.58,18.65817033]
[1739811424485,18.65817033,178.62,178.56,0.03]
[1739811424778,19.5924,178.64,178.56,0.03]
[1739811424779,24.25757033,178.59,178.56,0.03]
[1739811425884,18.65817033,178.58,178.56,0.03]
[1739811427186,5.6,178.57,178.56,0.03]
[1739811428684,106.05817033,178.57,178.56,0.03]
[1739811430487,87.4,178.57,178.56,0.03]
[1739811434896,106.05817033,178.57,178.56,0.03]
[1739811437301,87.4,178.57,178.56,0.03]
[1739811439712,99.34088172,178.57,178.56,0.03]
[1739811440207,17.54088172,178.57,178.56,0.03]
[1739811441702,5.6,178.57,178.56,0.03]
[1739811442284,5.5994,178.59,178.56,0.03]
[1739811442782,0.063,178.58,178.56,0.03]
[1739811445103,0.063,178.58,178.57,11.94088172]
[1739811445499,0.063,178.58,178.56,18.47218172]
[1739811445805,0.063,178.58,178.56,0.03]
[1739811448017,0.063,178.58,178.56,11.97088172]
[1739811449223,0.063,178.58,178.57,13.54908172]
[1739811451704,0.063,178.58,178.57,1.6082]
[1739811452913,0.063,178.58,178.56,0.03]
[1739811454726,12.00388172,178.58,178.56,0.03]
[1739811454912,0.063,178.58,178.56,0.03]
[1739811457930,81.8,178.57,178.56,0.03]
[1739811458837,87.4,178.57,178.56,0.03]
[1739811459636,81.8,178.57,178.56,0.03]
[1739811460331,87.4,178.57,178.56,0.03]
[1739811460514,81.8,178.57,178.56,11.97088172]
[1739811460716,81.8,178.57,178.56,0.03]
[1739811462525,87.4,178.57,178.56,0.03]
[1739811463710,81.8,178.57,178.56,0.03]
[1739811463916,0.063,178.58,178.56,11.97088172]
[1739811464852,5.6627,178.58,178.56,11.97088172]
[1739811465017,5.6627,178.58,178.56,0.03]
[1739811465642,0.063,178.58,178.56,0.03]
[1739811467317,12.00388172,178.58,178.56,0.03]
[1739811467849,5.6,178.57,178.56,0.03]
[1739811470339,17.54088172,178.57,178.56,0.03]
[1739811472346,5.6,178.57,178.56,0.03]
[1739811472550,81.8,178.56,178.49,0.063]
[1739811472755,93.74088172,178.55,178.49,12.00388172]
[1739811472926,93.74088172,178.55,178.49,0.063]
[1739811473522,81.8,178.55,178.49,12.00388172]
[1739811473723,81.8,178.54,178.49,12.00388172]
[1739811473942,93.74088172,178.54,178.49,0.063]
[1739811474348,5.6012,178.53,178.49,12.00388172]
[1739811475144,5.6012,178.53,178.49,0.063]
[1739811476657,5.6012,178.53,178.49,12.00388172]
[1739811477358,5.6012,178.53,178.49,0.063]
[1739811477568,17.54208172,178.53,178.49,0.063]
[1739811478266,5.6022,178.5,178.49,0.063]
[1739811478428,17.54308172,178.5,178.49,0.063]
[1739811481245,5.6022,178.5,178.49,0.063]
[1739811481952,11.94088172,178.51,178.49,0.063]
[1739811482269,17.54278172,178.51,178.49,0.063]
[1739811482873,11.94088172,178.5,178.49,0.063]
[1739811483073,17.54308172,178.5,178.49,0.063]
[1739811483569,17.54308172,178.5,178.49,0.0001]
[1739811483778,30.95493025,178.5,178.48,0.0001]
[1739811484063,11.94088172,178.49,178.48,0.0001]
[1739811485298,17.54338172,178.49,178.48,0.0001]
[1739811485773,30.95523025,178.49,178.48,0.0001]
[1739811486457,30.95523025,178.49,178.46,0.063]
[1739811486670,11.94088172,178.47,178.46,0.063]
[1739811487363,17.54398172,178.47,178.46,0.063]
[1739811488975,31.55188172,178.47,178.4,1.6226]
[1739811489180,11.94088172,178.44,178.4,1.6226]
[1739811489367,5.6044,178.43,178.4,1.6226]
[1739811489681,11.94088172,178.41,178.4,0.063]
[1739811490982,81.8,178.42,178.4,0.063]
[1739811491565,87.4048,178.42,178.4,0.063]
[1739811491975,93.74088172,178.41,178.4,0.063]
[1739811493586,99.34588172,178.41,178.38,0.03]
[1739811493877,11.94088172,178.39,178.38,0.03]
[1739811494596,11.44088172,178.4,178.38,0.03]
[1739811495383,5.6053,178.4,178.38,0.03]
[1739811497287,11.94088172,178.42,178.38,0.03]
[1739811497487,17.54498172,178.44,178.39,11.94088172]
[1739811497671,5.6041,178.44,178.39,11.94088172]
[1739811497987,5.6041,178.44,178.41,11.94088172]
[1739811498298,5.6041,178.44,178.42,11.94088172]
[1739811498885,87.4038,178.45,178.41,11.94088172]
[1739811499590,87.4038,178.45,178.4,18.04218172]
[1739811500588,87.4038,178.45,178.41,11.94088172]
[1739811501165,0.063,178.44,178.41,11.94088172]
[1739811501575,0.063,178.44,178.4,18.04218172]
[1739811501778,0.063,178.44,178.4,6.1013]
[1739811502083,0.063,178.44,178.41,11.94088172]
[1739811502789,0.063,178.44,178.4,18.04218172]
[1739811503087,0.063,178.44,178.4,6.1013]
[1739811503685,0.063,178.44,178.39,11.94088172]
[1739811503889,0.063,178.44,178.38,11.97088172]
[1739811504279,12.00388172,178.44,178.38,11.97088172]
[1739811504486,12.00388172,178.44,178.38,0.03]
[1739811504993,11.94088172,178.43,178.38,0.03]
[1739811505488,12.00388172,178.44,178.38,0.03]
[1739811506085,5.6044,178.43,178.39,11.94088172]
[1739811506997,0.063,178.44,178.42,11.94088172]
[1739811507196,0.063,178.44,178.43,11.94088172]
[1739811507486,0.063,178.44,178.43,19.81788172]
[1739811510181,0.063,178.44,178.43,26.26271589]
[1739811510579,0.063,178.44,178.43,32.98879458]
[1739811512393,0.063,178.44,178.43,32.14836041]
[1739811515502,0.063,178.44,178.43,26.54396041]
[1739811528206,0.063,178.44,178.43,20.29186041]
[1739811528812,0.063,178.44,178.43,18.66696041]
[1739811532315,0.063,178.44,178.42,18.66696041]
[1739811532710,0.063,178.44,178.41,11.95536751]
[1739811532918,0.063,178.44,178.4,11.98536751]
[1739811533213,0.063,178.44,178.41,11.95536751]
[1739811534099,0.063,178.44,178.43,11.95536751]
[1739811535106,0.063,178.44,178.42,11.95536751]
[1739811538093,0.063,178.44,178.43,11.95536751]
[1739811540702,0.063,178.44,178.42,11.95536751]
[1739811542321,0.063,178.44,178.41,11.95536751]
[1739811543627,0.063,178.44,178.42,11.95536751]
[1739811544528,0.063,178.44,178.41,11.95536751]